[Event "Early-Titled-Tuesday-Blitz-February-06-2024"]
[Site "Chess.com"]
[Date "2024.02.06"]
[Round "6"]
[White "ChristopherYoo"]
[Black "AradNazari"]
[Result "1-0"]
[WhiteElo "2966"]
[BlackElo "2774"]
[TimeControl "180+1"]
[EndTime "9:09:45 PST"]
[Termination "ChristopherYoo won on time"]

1. e4 {[%clk 0:03:00.9]} 1... c5 {[%clk 0:02:44.7]} 2. Nf3 {[%clk 0:02:56.4]}
2... d6 {[%clk 0:02:45.2]} 3. d4 {[%clk 0:02:56.6]} 3... cxd4 {[%clk 0:02:46.1]}
4. Nxd4 {[%clk 0:02:57.4]} 4... Nf6 {[%clk 0:02:46.7]} 5. Nc3 {[%clk 0:02:57.4]}
5... a6 {[%clk 0:02:47.5]} 6. Bg5 {[%clk 0:02:57.3]} 6... Nbd7 {[%clk
0:02:44.8]} 7. Qe2 {[%clk 0:02:55.6]} 7... e6 {[%clk 0:02:25.7]} 8. O-O-O {[%clk
0:02:51.2]} 8... Qc7 {[%clk 0:02:19.3]} 9. f4 {[%clk 0:02:37.3]} 9... Be7 {[%clk
0:02:14.2]} 10. g4 {[%clk 0:02:08.9]} 10... b5 {[%clk 0:02:09.5]} 11. Bg2 {[%clk
0:01:47]} 11... Rb8 {[%clk 0:02:03.8]} 12. Nd5 {[%clk 0:01:34.9]} 12... exd5
{[%clk 0:01:48.9]} 13. exd5 {[%clk 0:01:33]} 13... O-O {[%clk 0:01:34.6]} 14.
Nc6 {[%clk 0:01:31.6]} 14... Bd8 {[%clk 0:01:29]} 15. Nxb8 {[%clk 0:01:30.9]}
15... Qxb8 {[%clk 0:01:24.5]} 16. Rhe1 {[%clk 0:01:21.8]} 16... Nb6 {[%clk
0:01:20.2]} 17. Bxf6 {[%clk 0:01:20.3]} 17... Bxf6 {[%clk 0:01:19.3]} 18. g5
{[%clk 0:01:20.7]} 18... Bd8 {[%clk 0:01:16]} 19. Qh5 {[%clk 0:01:14.5]} 19...
Bf5 {[%clk 0:01:14.8]} 20. Be4 {[%clk 0:01:10.8]} 20... Qc8 {[%clk 0:01:14.7]}
21. Rd3 {[%clk 0:01:04.6]} 21... Bxe4 {[%clk 0:01:00.6]} 22. Rxe4 {[%clk
0:01:03.8]} 22... Qf5 {[%clk 0:01:01.3]} 23. Red4 {[%clk 0:00:53.7]} 23... Na4
{[%clk 0:00:59.2]} 24. Qh3 {[%clk 0:00:48.4]} 24... Qxh3 {[%clk 0:00:53]} 25.
Rxh3 {[%clk 0:00:49.3]} 25... Re8 {[%clk 0:00:53.1]} 26. b3 {[%clk 0:00:45.6]}
26... Bb6 {[%clk 0:00:48.6]} 27. Rdd3 {[%clk 0:00:43.7]} 27... Nc5 {[%clk
0:00:45.5]} 28. Rde3 {[%clk 0:00:43.8]} 28... Ne4 {[%clk 0:00:40.7]} 29. Re2
{[%clk 0:00:42.2]} 29... f5 {[%clk 0:00:33.5]} 30. gxf6 {[%clk 0:00:40]} 30...
Nxf6 {[%clk 0:00:33.9]} 31. Rxe8+ {[%clk 0:00:39.4]} 31... Nxe8 {[%clk
0:00:34.8]} 32. c4 {[%clk 0:00:32.3]} 32... b4 {[%clk 0:00:35]} 33. a3 {[%clk
0:00:21.1]} 33... a5 {[%clk 0:00:35.4]} 34. axb4 {[%clk 0:00:20.8]} 34... axb4
{[%clk 0:00:36.3]} 35. Kc2 {[%clk 0:00:18]} 35... Nf6 {[%clk 0:00:36.8]} 36. Kd3
{[%clk 0:00:17.5]} 36... Kf7 {[%clk 0:00:37]} 37. Rf3 {[%clk 0:00:16.8]} 37...
Bc5 {[%clk 0:00:36.5]} 38. Rf1 {[%clk 0:00:17.4]} 38... Nh5 {[%clk 0:00:27]} 39.
Ke4 {[%clk 0:00:16.9]} 39... Nf6+ {[%clk 0:00:26.6]} 40. Kf3 {[%clk 0:00:16.1]}
40... Kg6 {[%clk 0:00:26.8]} 41. Re1 {[%clk 0:00:15.9]} 41... Kf7 {[%clk
0:00:22.8]} 42. h3 {[%clk 0:00:13.9]} 42... Bd4 {[%clk 0:00:19.6]} 43. Re6
{[%clk 0:00:12.5]} 43... Bc5 {[%clk 0:00:17.1]} 44. Re2 {[%clk 0:00:13.1]} 44...
Nd7 {[%clk 0:00:17.4]} 45. Ra2 {[%clk 0:00:12.6]} 45... Bd4 {[%clk 0:00:15.2]}
46. Ra4 {[%clk 0:00:09.1]} 46... Bc3 {[%clk 0:00:13.2]} 47. Ra6 {[%clk
0:00:09.1]} 47... Ke7 {[%clk 0:00:13]} 48. Ra7 {[%clk 0:00:08.8]} 48... Ke8
{[%clk 0:00:13.4]} 49. Ra6 {[%clk 0:00:08.1]} 49... Ke7 {[%clk 0:00:13.7]} 50.
Ra7 {[%clk 0:00:06.6]} 50... Bd4 {[%clk 0:00:14.1]} 51. Rb7 {[%clk 0:00:06.2]}
51... Bc5 {[%clk 0:00:13.3]} 52. Ke4 {[%clk 0:00:04.4]} 52... Kd8 {[%clk
0:00:12.1]} 53. Kf5 {[%clk 0:00:03.4]} 53... Kc8 {[%clk 0:00:11.5]} 54. Rb5
{[%clk 0:00:04.1]} 54... Nf6 {[%clk 0:00:04.6]} 55. h4 {[%clk 0:00:02.4]} 55...
Kc7 {[%clk 0:00:04.1]} 56. Ra5 {[%clk 0:00:02.7]} 56... Nh5 {[%clk 0:00:02.9]}
57. Ra8 {[%clk 0:00:02.3]} 57... g6+ {[%clk 0:00:03.3]} 58. Kg5 {[%clk 0:00:02]}
58... Be3 {[%clk 0:00:04]} 59. Kh6 {[%clk 0:00:02.6]} 59... Nxf4 {[%clk
0:00:02.2]} 60. Kxh7 {[%clk 0:00:03.2]} 60... Bd4 {[%clk 0:00:02.5]} 61. Rf8
{[%clk 0:00:02.5]} 61... Nd3 {[%clk 0:00:03.1]} 62. Kh6 {[%clk 0:00:02.6]} 62...
Nc5 {[%clk 0:00:03.7]} 63. Rf3 {[%clk 0:00:02.3]} 63... Bc3 {[%clk 0:00:03.3]}
64. Kxg6 {[%clk 0:00:02.4]} 64... Nxb3 {[%clk 0:00:03.9]} 65. h5 {[%clk
0:00:03.2]} 65... Nd2 {[%clk 0:00:03.9]} 66. Rd3 {[%clk 0:00:03]} 66... Ne4
{[%clk 0:00:03]} 67. h6 {[%clk 0:00:03.1]} 67... Be5 {[%clk 0:00:02.7]} 68. Re3
{[%clk 0:00:02.6]} 68... Nf6 {[%clk 0:00:01.7]} 69. Rxe5 {[%clk 0:00:01.8]}
69... dxe5 {[%clk 0:00:02.6]} 70. Kxf6 {[%clk 0:00:02]} 70... b3 {[%clk
0:00:03.3]} 71. h7 {[%clk 0:00:02.2]} 71... b2 {[%clk 0:00:04.2]} 72. h8=Q
{[%clk 0:00:02.8]} 72... b1=Q {[%clk 0:00:05.1]} 73. Qg7+ {[%clk 0:00:03.2]}
73... Kb6 {[%clk 0:00:05.1]} 74. Qe7 {[%clk 0:00:03.2]} 74... Qf1+ {[%clk
0:00:04.7]} 75. Kxe5 {[%clk 0:00:03.4]} 75... Qe1+ {[%clk 0:00:03.9]} 76. Kd6
{[%clk 0:00:03.3]} 76... Qb4+ {[%clk 0:00:04.5]} 77. Kd7 {[%clk 0:00:03.5]}
77... Qa4+ {[%clk 0:00:02.9]} 78. Ke6 {[%clk 0:00:03.9]} 78... Qxc4 {[%clk
0:00:02.8]} 79. Qd6+ {[%clk 0:00:04.6]} 79... Kb7 {[%clk 0:00:03.3]} 80. Qd7+
{[%clk 0:00:05.2]} 80... Kb6 {[%clk 0:00:04]} 81. Qd8+ {[%clk 0:00:05.9]} 81...
Kb7 {[%clk 0:00:04.5]} 82. Qe7+ {[%clk 0:00:06.5]} 82... Kb6 {[%clk 0:00:04.6]}
83. Qd6+ {[%clk 0:00:06.7]} 83... Kb7 {[%clk 0:00:05.2]} 84. Qe5 {[%clk
0:00:06.3]} 84... Qg4+ {[%clk 0:00:04.8]} 85. Qf5 {[%clk 0:00:06.4]} 85... Qe2+
{[%clk 0:00:03.8]} 86. Kd6 {[%clk 0:00:06.1]} 86... Kb6 {[%clk 0:00:02.6]} 87.
Qe6 {[%clk 0:00:04.1]} 87... Qh2+ {[%clk 0:00:03.1]} 88. Kd7+ {[%clk 0:00:04.6]}
88... Kb7 {[%clk 0:00:03]} 89. Qc6+ {[%clk 0:00:04.7]} 1-0

[Event "Early-Titled-Tuesday-Blitz-February-06-2024"]
[Site "Chess.com"]
[Date "2024.02.06"]
[Round "6"]
[White "Yurovskykh_Oleksandr"]
[Black "RobertoJBM"]
[Result "1/2-1/2"]
[WhiteElo "2639"]
[BlackElo "2811"]
[TimeControl "180+1"]
[EndTime "9:09:45 PST"]
[Termination "Game drawn by repetition"]

1. d4 {[%clk 0:02:54.2]} 1... d5 {[%clk 0:03:00.1]} 2. Bf4 {[%clk 0:02:43.1]}
2... e6 {[%clk 0:01:51.1]} 3. e3 {[%clk 0:02:35.9]} 3... Bd6 {[%clk 0:01:51.1]}
4. Bg3 {[%clk 0:02:35.4]} 4... Qe7 {[%clk 0:01:49.4]} 5. Nd2 {[%clk 0:02:31.5]}
5... Nd7 {[%clk 0:01:47.8]} 6. Ngf3 {[%clk 0:02:30.6]} 6... e5 {[%clk
0:01:46.7]} 7. dxe5 {[%clk 0:02:30.9]} 7... Nxe5 {[%clk 0:01:47.2]} 8. Nxe5
{[%clk 0:02:29.4]} 8... Bxe5 {[%clk 0:01:48.1]} 9. c3 {[%clk 0:02:26.4]} 9...
Nf6 {[%clk 0:01:46.8]} 10. Bxe5 {[%clk 0:02:21.1]} 10... Qxe5 {[%clk 0:01:46.5]}
11. Nf3 {[%clk 0:02:21.7]} 11... Qe7 {[%clk 0:01:46.4]} 12. Be2 {[%clk
0:02:16.6]} 12... Bd7 {[%clk 0:01:44.6]} 13. O-O {[%clk 0:02:10.6]} 13... O-O
{[%clk 0:01:44.6]} 14. Qd4 {[%clk 0:02:05.5]} 14... Rfe8 {[%clk 0:01:42.7]} 15.
Rfd1 {[%clk 0:02:04.8]} 15... c5 {[%clk 0:01:41]} 16. Qf4 {[%clk 0:01:55.8]}
16... Bc6 {[%clk 0:01:40]} 17. h3 {[%clk 0:01:49.9]} 17... h6 {[%clk 0:01:36.9]}
18. Qh4 {[%clk 0:01:33.9]} 18... Rad8 {[%clk 0:01:32.6]} 19. Rd2 {[%clk
0:01:32.8]} 19... Rd6 {[%clk 0:01:24.3]} 20. Rad1 {[%clk 0:01:30.6]} 20... Re6
{[%clk 0:01:24.6]} 21. Bd3 {[%clk 0:01:23.5]} 21... d4 {[%clk 0:01:10]} 22. cxd4
{[%clk 0:01:20.6]} 22... Bxf3 {[%clk 0:01:09.7]} 23. gxf3 {[%clk 0:01:21.5]}
23... cxd4 {[%clk 0:01:07.6]} 24. Qxd4 {[%clk 0:01:18.8]} 24... Rb6 {[%clk
0:01:06.2]} 25. Bc4 {[%clk 0:01:03.3]} 25... g6 {[%clk 0:01:01.7]} 26. Qc3
{[%clk 0:00:57.4]} 26... Qe5 {[%clk 0:00:57.4]} 27. Qxe5 {[%clk 0:00:48.8]}
27... Rxe5 {[%clk 0:00:58.3]} 28. b3 {[%clk 0:00:48.9]} 28... Kg7 {[%clk
0:00:53.8]} 29. f4 {[%clk 0:00:47]} 29... Re7 {[%clk 0:00:53.4]} 30. Rd6 {[%clk
0:00:46.7]} 30... Rxd6 {[%clk 0:00:51.8]} 31. Rxd6 {[%clk 0:00:47.6]} 31... Ne4
{[%clk 0:00:52.3]} 32. Rd8 {[%clk 0:00:44.1]} 32... b6 {[%clk 0:00:44.4]} 33. a4
{[%clk 0:00:44.4]} 33... Nc5 {[%clk 0:00:42.4]} 34. Kg2 {[%clk 0:00:42]} 34...
Rc7 {[%clk 0:00:41.9]} 35. Bd5 {[%clk 0:00:39.8]} 35... Kf6 {[%clk 0:00:40.6]}
36. h4 {[%clk 0:00:37.2]} 36... h5 {[%clk 0:00:40.7]} 37. Kf3 {[%clk 0:00:36.9]}
37... Ke7 {[%clk 0:00:39.8]} 38. Ra8 {[%clk 0:00:35.5]} 38... Kd6 {[%clk
0:00:38.5]} 39. Bc4 {[%clk 0:00:31.6]} 39... Ke7 {[%clk 0:00:29]} 40. Ke2 {[%clk
0:00:28.7]} 40... Kf6 {[%clk 0:00:25.7]} 41. Bd5 {[%clk 0:00:28.1]} 41... Rd7
{[%clk 0:00:24.8]} 42. e4 {[%clk 0:00:25.5]} 42... Rc7 {[%clk 0:00:21.3]} 43.
Kf3 {[%clk 0:00:19.3]} 43... Kg7 {[%clk 0:00:10.4]} 44. e5 {[%clk 0:00:14.3]}
44... Rd7 {[%clk 0:00:10.8]} 45. Bc4 {[%clk 0:00:14]} 45... Rc7 {[%clk
0:00:10.9]} 46. Ke3 {[%clk 0:00:10]} 46... Nxb3 {[%clk 0:00:06.6]} 47. Bxb3
{[%clk 0:00:07.2]} 47... Rc3+ {[%clk 0:00:07.5]} 48. Ke4 {[%clk 0:00:07.5]}
48... Rxb3 {[%clk 0:00:08.2]} 49. Rxa7 {[%clk 0:00:08.1]} 49... Kf8 {[%clk
0:00:07.9]} 50. Rb7 {[%clk 0:00:07.5]} 50... Rb4+ {[%clk 0:00:08.1]} 51. Kf3
{[%clk 0:00:08]} 51... Rxa4 {[%clk 0:00:07.2]} 52. Rxb6 {[%clk 0:00:08.3]} 52...
Ra3+ {[%clk 0:00:07.4]} 53. Kg2 {[%clk 0:00:08.7]} 53... Ke7 {[%clk 0:00:07.1]}
54. f5 {[%clk 0:00:06.4]} 54... gxf5 {[%clk 0:00:06.8]} 55. Rf6 {[%clk
0:00:04.5]} 55... Ra4 {[%clk 0:00:07.2]} 56. Rxf5 {[%clk 0:00:04]} 56... Rxh4
{[%clk 0:00:06.9]} 57. Kg3 {[%clk 0:00:03.8]} 57... Rg4+ {[%clk 0:00:06.9]} 58.
Kh3 {[%clk 0:00:04]} 58... Rg8 {[%clk 0:00:04.9]} 59. Rxh5 {[%clk 0:00:04.1]}
59... Ke6 {[%clk 0:00:05.5]} 60. f4 {[%clk 0:00:04.5]} 60... Rg1 {[%clk
0:00:03.6]} 61. Rh6+ {[%clk 0:00:04.6]} 61... Ke7 {[%clk 0:00:02.2]} 62. Rf6
{[%clk 0:00:05.1]} 62... Rg8 {[%clk 0:00:02.3]} 63. Kh2 {[%clk 0:00:05.4]} 63...
Rg7 {[%clk 0:00:02.3]} 64. Kh3 {[%clk 0:00:05.9]} 64... Rg8 {[%clk 0:00:02.7]}
65. Kh4 {[%clk 0:00:06]} 65... Rg1 {[%clk 0:00:02.9]} 66. Rf5 {[%clk 0:00:05.6]}
66... Ke6 {[%clk 0:00:03]} 67. Rf6+ {[%clk 0:00:05]} 67... Ke7 {[%clk
0:00:03.1]} 68. Kh5 {[%clk 0:00:05.7]} 68... Rg2 {[%clk 0:00:03.2]} 69. Rf5
{[%clk 0:00:05.1]} 69... Ke6 {[%clk 0:00:03.2]} 70. Rg5 {[%clk 0:00:05.5]} 70...
Rh2+ {[%clk 0:00:03.6]} 71. Kg4 {[%clk 0:00:06]} 71... Rg2+ {[%clk 0:00:03.1]}
72. Kh4 {[%clk 0:00:05.9]} 72... Rh2+ {[%clk 0:00:02.8]} 73. Kg3 {[%clk
0:00:06.3]} 73... Rh8 {[%clk 0:00:03.7]} 74. Kf3 {[%clk 0:00:06.1]} 74... Rh6
{[%clk 0:00:03.8]} 75. Ke4 {[%clk 0:00:06.3]} 75... Ke7 {[%clk 0:00:03.8]} 76.
Rf5 {[%clk 0:00:06.5]} 76... Ra6 {[%clk 0:00:04.2]} 77. Rg5 {[%clk 0:00:06.7]}
77... Ke6 {[%clk 0:00:04]} 78. Rh5 {[%clk 0:00:06.8]} 78... Ra4+ {[%clk
0:00:04]} 79. Kf3 {[%clk 0:00:07.3]} 79... Ke7 {[%clk 0:00:04]} 80. Rh6 {[%clk
0:00:07.6]} 80... Ra5 {[%clk 0:00:04.5]} 81. Rb6 {[%clk 0:00:08]} 81... Rc5
{[%clk 0:00:04.5]} 82. Kg4 {[%clk 0:00:08.3]} 82... Kf8 {[%clk 0:00:05]} 83. Rb7
{[%clk 0:00:08.4]} 83... Kg7 {[%clk 0:00:05.6]} 84. e6 {[%clk 0:00:08.5]} 84...
Kf6 {[%clk 0:00:05.5]} 85. exf7 {[%clk 0:00:06.2]} 85... Kg7 {[%clk 0:00:05.3]}
86. f5 {[%clk 0:00:06.5]} 86... Rc1 {[%clk 0:00:05.2]} 87. f8=Q+ {[%clk
0:00:02.9]} 87... Kxf8 {[%clk 0:00:05]} 88. Rb6 {[%clk 0:00:03.6]} 88... Kf7
{[%clk 0:00:04.8]} 89. Rb7+ {[%clk 0:00:03.6]} 89... Kf6 {[%clk 0:00:05.2]} 90.
Rb6+ {[%clk 0:00:04.1]} 90... Kf7 {[%clk 0:00:05.6]} 91. Rb7+ {[%clk 0:00:04.3]}
91... Kf6 {[%clk 0:00:06]} 92. Rb6+ {[%clk 0:00:05]} 92... Kf7 {[%clk
0:00:06.4]} 1/2-1/2

[Event "Early-Titled-Tuesday-Blitz-February-06-2024"]
[Site "Chess.com"]
[Date "2024.02.06"]
[Round "6"]
[White "GMBenjaminBok"]
[Black "nihalsarin"]
[Result "1/2-1/2"]
[WhiteElo "2973"]
[BlackElo "3125"]
[TimeControl "180+1"]
[EndTime "9:09:52 PST"]
[Termination "Game drawn by repetition"]

1. d4 {[%clk 0:03:00.9]} 1... a6 {[%clk 0:03:00.8]} 2. Nf3 {[%clk 0:02:59.2]}
2... Nf6 {[%clk 0:02:58.9]} 3. c4 {[%clk 0:02:43.5]} 3... b5 {[%clk 0:02:58.9]}
4. e3 {[%clk 0:02:38.1]} 4... bxc4 {[%clk 0:02:59.3]} 5. Bxc4 {[%clk 0:02:38.1]}
5... e6 {[%clk 0:03:00.2]} 6. O-O {[%clk 0:02:37.4]} 6... Be7 {[%clk 0:03:00.3]}
7. Nc3 {[%clk 0:02:34.8]} 7... d5 {[%clk 0:03:00.1]} 8. Bd3 {[%clk 0:02:34.6]}
8... Bb7 {[%clk 0:03:00.1]} 9. Qe2 {[%clk 0:02:34.2]} 9... Nbd7 {[%clk
0:02:57.5]} 10. e4 {[%clk 0:02:26.2]} 10... dxe4 {[%clk 0:02:57.6]} 11. Nxe4
{[%clk 0:02:27.1]} 11... O-O {[%clk 0:02:57.6]} 12. Bg5 {[%clk 0:02:21.4]} 12...
Nd5 {[%clk 0:02:35]} 13. Bxe7 {[%clk 0:02:17.9]} 13... Qxe7 {[%clk 0:02:35.9]}
14. Rac1 {[%clk 0:02:05]} 14... Nf4 {[%clk 0:02:35.1]} 15. Qe3 {[%clk
0:02:04.5]} 15... Nxd3 {[%clk 0:02:35.5]} 16. Qxd3 {[%clk 0:02:05.4]} 16... Rfc8
{[%clk 0:02:33.3]} 17. Nc5 {[%clk 0:01:56.2]} 17... Bd5 {[%clk 0:02:29.2]} 18.
Nxd7 {[%clk 0:01:52.4]} 18... Qxd7 {[%clk 0:02:30.1]} 19. b3 {[%clk 0:01:38.3]}
19... a5 {[%clk 0:02:27.6]} 20. Ne5 {[%clk 0:01:27]} 20... Qe7 {[%clk
0:02:25.4]} 21. Rc3 {[%clk 0:01:06]} 21... a4 {[%clk 0:02:24.7]} 22. Rfc1 {[%clk
0:01:02.9]} 22... h6 {[%clk 0:02:21.4]} 23. Qe3 {[%clk 0:00:46.2]} 23... Ra6
{[%clk 0:01:58.8]} 24. h3 {[%clk 0:00:43.9]} 24... axb3 {[%clk 0:01:56.9]} 25.
axb3 {[%clk 0:00:44.8]} 25... Rb6 {[%clk 0:01:55.4]} 26. Qg3 {[%clk 0:00:30.3]}
26... Rb7 {[%clk 0:01:39.7]} 27. Kh2 {[%clk 0:00:28]} 27... Qd6 {[%clk
0:01:36.5]} 28. Nc4 {[%clk 0:00:20]} 28... Qxg3+ {[%clk 0:01:36.4]} 29. Kxg3
{[%clk 0:00:20.9]} 29... Rcb8 {[%clk 0:01:34.2]} 30. Ne3 {[%clk 0:00:21]} 30...
Rxb3 {[%clk 0:01:28]} 31. Rxc7 {[%clk 0:00:16.7]} 31... Rd3 {[%clk 0:01:28.4]}
32. Rc8+ {[%clk 0:00:11.7]} 32... Rxc8 {[%clk 0:01:28.1]} 33. Rxc8+ {[%clk
0:00:12.6]} 33... Kh7 {[%clk 0:01:29]} 34. Rc7 {[%clk 0:00:12.8]} 34... Kg6
{[%clk 0:01:26.8]} 35. Rd7 {[%clk 0:00:11.2]} 35... Rxd4 {[%clk 0:01:25.7]} 36.
Nxd5 {[%clk 0:00:11.4]} 36... exd5 {[%clk 0:01:15.3]} 37. Kf3 {[%clk 0:00:11.7]}
37... Kf6 {[%clk 0:01:09.6]} 38. Ke3 {[%clk 0:00:12]} 38... Re4+ {[%clk
0:01:09.9]} 39. Kd3 {[%clk 0:00:11.2]} 39... Ke6 {[%clk 0:01:10.6]} 40. Ra7
{[%clk 0:00:11.6]} 40... Rc4 {[%clk 0:01:00.3]} 41. Ra6+ {[%clk 0:00:11.6]}
41... Kd7 {[%clk 0:01:00.2]} 42. Ra7+ {[%clk 0:00:11.8]} 42... Rc7 {[%clk
0:01:00.5]} 43. Ra5 {[%clk 0:00:11.7]} 43... Kd6 {[%clk 0:00:59.8]} 44. Kd4
{[%clk 0:00:11.6]} 44... Rc4+ {[%clk 0:01:00]} 45. Kd3 {[%clk 0:00:12.3]} 45...
h5 {[%clk 0:00:53.6]} 46. Ra6+ {[%clk 0:00:11]} 46... Rc6 {[%clk 0:00:52.6]} 47.
Ra7 {[%clk 0:00:11.5]} 47... Ke6 {[%clk 0:00:53]} 48. h4 {[%clk 0:00:10.6]}
48... f6 {[%clk 0:00:50]} 49. Rxg7 {[%clk 0:00:09.5]} 49... Kf5 {[%clk
0:00:47.4]} 50. g3 {[%clk 0:00:09.5]} 50... Ra6 {[%clk 0:00:47.8]} 51. f3 {[%clk
0:00:04.3]} 51... Ra3+ {[%clk 0:00:47.2]} 52. Ke2 {[%clk 0:00:04.9]} 52... Ra2+
{[%clk 0:00:46]} 53. Ke3 {[%clk 0:00:05]} 53... Ra3+ {[%clk 0:00:45.4]} 54. Kf2
{[%clk 0:00:05.5]} 54... d4 {[%clk 0:00:45.8]} 55. Rh7 {[%clk 0:00:04.9]} 55...
Ra2+ {[%clk 0:00:42.6]} 56. Ke1 {[%clk 0:00:05.3]} 56... Kg6 {[%clk 0:00:42.9]}
57. Rd7 {[%clk 0:00:05.2]} 57... Ra3 {[%clk 0:00:38.7]} 58. Kf2 {[%clk
0:00:05.5]} 58... Ra4 {[%clk 0:00:36.5]} 59. Rd5 {[%clk 0:00:04.9]} 59... Rb4
{[%clk 0:00:36.3]} 60. g4 {[%clk 0:00:04.5]} 60... hxg4 {[%clk 0:00:35.6]} 61.
fxg4 {[%clk 0:00:05.4]} 61... Rb2+ {[%clk 0:00:36.5]} 62. Kf3 {[%clk 0:00:05.6]}
62... Rb3+ {[%clk 0:00:37.3]} 63. Kf4 {[%clk 0:00:06.2]} 63... d3 {[%clk
0:00:36.9]} 64. h5+ {[%clk 0:00:06.4]} 64... Kh6 {[%clk 0:00:37.4]} 65. Rd6
{[%clk 0:00:06.3]} 65... Kg7 {[%clk 0:00:36]} 66. Rd7+ {[%clk 0:00:06.1]} 66...
Kh6 {[%clk 0:00:35.7]} 67. Kf5 {[%clk 0:00:06.6]} 67... d2 {[%clk 0:00:26.8]}
68. Rxd2 {[%clk 0:00:06.5]} 68... Rf3+ {[%clk 0:00:27.4]} 69. Ke6 {[%clk
0:00:07]} 69... Rf4 {[%clk 0:00:27.6]} 70. Rg2 {[%clk 0:00:05.1]} 70... Kg7
{[%clk 0:00:26.3]} 71. Rg1 {[%clk 0:00:04.2]} 71... Ra4 {[%clk 0:00:25]} 72. Kf5
{[%clk 0:00:04]} 72... Ra5+ {[%clk 0:00:25.5]} 73. Kf4 {[%clk 0:00:04.7]} 73...
Ra4+ {[%clk 0:00:26]} 74. Kg3 {[%clk 0:00:05.4]} 74... Ra3+ {[%clk 0:00:26.5]}
75. Kh4 {[%clk 0:00:05.6]} 75... Ra4 {[%clk 0:00:26.8]} 76. Rf1 {[%clk
0:00:06.1]} 76... Rb4 {[%clk 0:00:24.6]} 77. Rf5 {[%clk 0:00:05.9]} 77... Ra4
{[%clk 0:00:19.5]} 78. Kg3 {[%clk 0:00:06.1]} 78... Ra3+ {[%clk 0:00:19.6]} 79.
Rf3 {[%clk 0:00:06.7]} 79... Ra5 {[%clk 0:00:19.3]} 80. Re3 {[%clk 0:00:05]}
80... Kh6 {[%clk 0:00:18.5]} 81. Kf4 {[%clk 0:00:04.9]} 81... Kg7 {[%clk
0:00:13.8]} 82. Re7+ {[%clk 0:00:04.3]} 82... Kf8 {[%clk 0:00:14.4]} 83. Rd7
{[%clk 0:00:03]} 83... Kg8 {[%clk 0:00:13.7]} 84. Re7 {[%clk 0:00:02.6]} 84...
Kf8 {[%clk 0:00:13.9]} 85. Rd7 {[%clk 0:00:02.9]} 85... Kg8 {[%clk 0:00:14.4]}
86. Rc7 {[%clk 0:00:02.9]} 86... Rb5 {[%clk 0:00:14.7]} 87. Ke4 {[%clk
0:00:02.8]} 87... Rg5 {[%clk 0:00:14.2]} 88. Kf4 {[%clk 0:00:03]} 88... Ra5
{[%clk 0:00:14.9]} 89. Rd7 {[%clk 0:00:03]} 89... Rb5 {[%clk 0:00:14]} 90. Rc7
{[%clk 0:00:03.1]} 90... Ra5 {[%clk 0:00:14.4]} 91. Rb7 {[%clk 0:00:03.4]} 91...
Rc5 {[%clk 0:00:14.5]} 92. Rb8+ {[%clk 0:00:03.6]} 92... Kg7 {[%clk 0:00:14.4]}
93. Rb7+ {[%clk 0:00:04.5]} 93... Kg8 {[%clk 0:00:14.9]} 94. Rd7 {[%clk
0:00:04.6]} 94... Ra5 {[%clk 0:00:14.6]} 1/2-1/2

[Event "Early-Titled-Tuesday-Blitz-February-06-2024"]
[Site "Chess.com"]
[Date "2024.02.06"]
[Round "7"]
[White "HanSchut"]
[Black "UK_23"]
[Result "1-0"]
[WhiteElo "2268"]
[BlackElo "2390"]
[TimeControl "180+1"]
[EndTime "9:12:29 PST"]
[Termination "HanSchut won by resignation"]

1. e4 {[%clk 0:02:51.4]} 1... c5 {[%clk 0:02:58.9]} 2. Nf3 {[%clk 0:02:40.6]}
2... Nc6 {[%clk 0:02:59]} 3. d4 {[%clk 0:02:40.6]} 3... cxd4 {[%clk 0:02:59.3]}
4. Nxd4 {[%clk 0:02:41.5]} 4... Nf6 {[%clk 0:02:51.9]} 5. Nc3 {[%clk 0:02:41.5]}
5... e5 {[%clk 0:02:43.9]} 6. Ndb5 {[%clk 0:02:42]} 6... d6 {[%clk 0:02:40.7]}
7. Nd5 {[%clk 0:02:42.5]} 7... Nxd5 {[%clk 0:02:38.8]} 8. exd5 {[%clk
0:02:43.4]} 8... Ne7 {[%clk 0:02:35.8]} 9. c3 {[%clk 0:02:43.3]} 9... a6 {[%clk
0:02:32.8]} 10. Qa4 {[%clk 0:02:43]} 10... axb5 {[%clk 0:02:10.6]} 11. Bxb5+
{[%clk 0:02:38]} 1-0

[Event "Early-Titled-Tuesday-Blitz-February-06-2024"]
[Site "Chess.com"]
[Date "2024.02.06"]
[Round "7"]
[White "kleopl"]
[Black "ClaudiaSof"]
[Result "1-0"]
[WhiteElo "2530"]
[BlackElo "2277"]
[TimeControl "180+1"]
[EndTime "9:13:22 PST"]
[Termination "kleopl won by resignation"]

1. e4 {[%clk 0:03:00.9]} 1... c5 {[%clk 0:02:59.2]} 2. Nc3 {[%clk 0:03:00.9]}
2... Nc6 {[%clk 0:02:58.8]} 3. Bb5 {[%clk 0:02:59.8]} 3... Nd4 {[%clk
0:02:58.3]} 4. Bc4 {[%clk 0:02:59.8]} 4... e6 {[%clk 0:02:57.6]} 5. Nge2 {[%clk
0:02:59.1]} 5... Nf6 {[%clk 0:02:51.8]} 6. O-O {[%clk 0:02:58.6]} 6... d5 {[%clk
0:02:48.9]} 7. exd5 {[%clk 0:02:58.7]} 7... exd5 {[%clk 0:02:48.4]} 8. Nxd5
{[%clk 0:02:59]} 8... Nxd5 {[%clk 0:02:42.5]} 9. Nxd4 {[%clk 0:02:58.9]} 9...
cxd4 {[%clk 0:02:40.1]} 10. Qh5 {[%clk 0:02:58.6]} 10... Be6 {[%clk 0:02:38.9]}
11. Re1 {[%clk 0:02:58]} 11... Be7 {[%clk 0:01:18]} 12. Rxe6 {[%clk 0:02:42.5]}
12... Nf6 {[%clk 0:01:11.9]} 13. Rxf6 {[%clk 0:02:37]} 1-0

[Event "Early-Titled-Tuesday-Blitz-February-06-2024"]
[Site "Chess.com"]
[Date "2024.02.06"]
[Round "7"]
[White "alekroth65"]
[Black "JaackCamel"]
[Result "1-0"]
[WhiteElo "2377"]
[BlackElo "2164"]
[TimeControl "180+1"]
[EndTime "9:13:44 PST"]
[Termination "alekroth65 won by resignation"]

1. d4 {[%clk 0:03:00.9]} 1... d5 {[%clk 0:02:45.5]} 2. c4 {[%clk 0:03:01.2]}
2... e6 {[%clk 0:02:44.3]} 3. Nf3 {[%clk 0:03:00.6]} 3... c6 {[%clk 0:02:43.5]}
4. e3 {[%clk 0:02:57.9]} 4... Nf6 {[%clk 0:02:42.3]} 5. Nc3 {[%clk 0:02:57.7]}
5... Nbd7 {[%clk 0:02:41.8]} 6. Qc2 {[%clk 0:02:56]} 6... dxc4 {[%clk
0:02:41.4]} 7. Bxc4 {[%clk 0:02:54.8]} 7... b5 {[%clk 0:02:41.7]} 8. Bd3 {[%clk
0:02:53]} 8... a6 {[%clk 0:02:41.7]} 9. e4 {[%clk 0:02:44.4]} 9... c5 {[%clk
0:02:37.3]} 10. e5 {[%clk 0:02:40.9]} 10... Nd5 {[%clk 0:02:36.2]} 11. Nxd5
{[%clk 0:02:36.1]} 11... exd5 {[%clk 0:02:35.9]} 12. Bxh7 {[%clk 0:02:25.6]}
12... Nb6 {[%clk 0:02:17.5]} 13. Bf5 {[%clk 0:02:19]} 13... c4 {[%clk
0:02:13.9]} 14. O-O {[%clk 0:02:12.6]} 14... Be7 {[%clk 0:02:09.8]} 15. Bf4
{[%clk 0:02:05.3]} 15... Nd7 {[%clk 0:02:05.5]} 16. e6 {[%clk 0:01:57.2]} 16...
fxe6 {[%clk 0:01:49.9]} 17. Bxe6 {[%clk 0:01:58.1]} 17... Nf6 {[%clk 0:01:47.9]}
18. Qg6+ {[%clk 0:01:55.3]} 1-0